Cogmind - Beta 13 @@@ ROGUE MODE // 2024.06.06 @ 00:26:35 Player: Findu Result: Destroyed by P-80 Master with Gamma Rifle Performance ------------- Evolutions (7) 3500 Regions Visited (16) 3200 Robots Destroyed (39) 195 Value Destroyed (1334) 1334 Prototype IDs (13) 260 Alien Tech Used (0) 0 Bonus (1070) 1070 TOTAL SCORE: 9559 Bonus ------- Follower Combat Kills 70 Entered Garrisons 200 Used RIF Installer 500 Aligned with FarCom 300 Cogmind --------- Core Integrity 0/1300 Matter 192/300 Energy 89/100 System Corruption 1% Temperature Cool (0) Movement Core (250) Ox4 Location -3/Research Parts ------- > --- POWER (2) -------- Improved Fusion Compressor > --- PROPULSION (5) --- (None) > --- UTILITY (12) ----- Advanced Signal Interpreter Improved Terrain Scan Processor Melee Analysis Suite Improved Launcher Guidance Computer Improved Phase Shifter > --- WEAPON (2) ------- Enhanced Coil Gun > --- INVENTORY (5) ---- Advanced Trap Scanner Advanced Datajack Peak State ------------ > --- POWER ------------ Micro Fission Core Compact Particle Reactor > --- PROPULSION ------- Cooled Nuclear Pulse Thruster Nuclear Pulse Array Nuclear Pulse Array > --- UTILITY ---------- Advanced Signal Interpreter Improved Terrain Scanner Improved Terrain Scan Processor Improved Launcher Guidance Computer Improved Transmission Jammer Advanced Hacking Suite System Shield Improved System Shield > --- WEAPON ----------- Quantum Rifle Bore Cannon > --- INVENTORY -------- Light Fission Core Micro Antimatter Reactor Improved Weapon Shielding Heavy Battle Rifle Advanced Datajack [Rating: 98] Favorites ----------- Power Light Fission Core Engine Light Deuterium Engine Power Core Light Fission Core Reactor Micro Antimatter Reactor Propulsion Improved Flight Unit Treads Light Treads Wheel Wheel Flight Unit Improved Flight Unit Utility Improved Terrain Scan Processor Device Improved Terrain Scanner Storage Large Storage Unit Processor Improved Terrain Scan Processor Hackware System Shield Protection Improved Utility Shielding Weapon Spear Energy Gun Improved Medium Laser Energy Cannon Ion Cannon Ballistic Gun Assault Rifle Ballistic Cannon Bore Cannon Special Weapon Improved Plasma Cutter Piercing Weapon Spear Special Melee Weapon Advanced Datajack Build | -11 -10 -10 -10 -9 -8 -7 -6 -5 -5 -5 -4 -4 -4 -3 -3 -3 ------- Run | Yrd Mat Min Exi Min Mat Fac Fac Fac Was Fac Fac Upp Upp Res Gar Res Slots Evolved 14 | . . . . . 4 2 2 2 . . 2 . . 2 . . Power 1 | . . . . . . . . 1 . . . . . . . . Propulsion 3 | . . . . . 1 . . 1 . . . . . 1 . . Utility 10 | . . . . . 3 2 2 . . . 2 . . 1 . . Weapon . | . . . . . . . . . . . . . . . . . Parts Attached 128 | 6 5 1 1 . 26 11 9 17 1 16 4 10 . 13 2 6 Power 27 | 1 1 1 . . 4 2 1 2 1 4 2 3 . 3 . 2 Engine 11 | 1 1 . . . 3 2 1 . . 3 . . . . . . Core 13 | . . 1 . . 1 . . 2 . 1 2 3 . 1 . 2 Reactor 3 | . . . . . . . . . 1 . . . . 2 . . Propulsion 28 | 2 1 . . . 5 1 5 4 . 5 1 1 . 2 . 1 Treads 3 | 1 . . . . 2 . . . . . . . . . . . Leg . | . . . . . . . . . . . . . . . . . Wheel 2 | 1 1 . . . . . . . . . . . . . . . Hover . | . . . . . . . . . . . . . . . . . Flight 23 | . . . . . 3 1 5 4 . 5 1 1 . 2 . 1 Utility 37 | 1 2 . 1 . 8 5 3 7 . 2 . . . 4 2 2 Device 21 | . 1 . . . 4 3 2 6 . 1 . . . 2 1 1 Storage 2 | 1 . . 1 . . . . . . . . . . . . . Processor 8 | . 1 . . . 3 . 1 . . 1 . . . 1 . 1 Hackware 4 | . . . . . . 2 . 1 . . . . . 1 . . Protection 2 | . . . . . 1 . . . . . . . . . 1 . Artifact . | . . . . . . . . . . . . . . . . . Weapon 36 | 2 1 . . . 9 3 . 4 . 5 1 6 . 4 . 1 Energy Gun 7 | . 1 . . . 1 1 . 1 . . . 2 . 1 . . Energy Cannon 3 | . . . . . 3 . . . . . . . . . . . Ballistic Gun 12 | 2 . . . . 4 2 . 1 . . . 1 . 1 . 1 Ballistic Cannon 10 | . . . . . . . . 2 . 3 . 3 . 2 . . Launcher . | . . . . . . . . . . . . . . . . . Special Weapon 2 | . . . . . . . . . . 2 . . . . . . Impact Weapon . | . . . . . . . . . . . . . . . . . Slashing Weapon . | . . . . . . . . . . . . . . . . . Piercing Weapon 1 | . . . . . 1 . . . . . . . . . . . Special Melee Weapon 1 | . . . . . . . . . . . 1 . . . . . Unidentified Prototypes 11 | . 1 . . . 2 1 1 . . 2 . . . 2 . 2 Parts Lost 35 | . . . . . 2 . 1 3 2 7 . 5 . 2 11 2 Power 6 | . . . . . . . . 2 . . . 2 . 1 1 . Propulsion 10 | . . . . . . . 1 . 1 4 . . . . 3 1 Utility 12 | . . . . . 1 . . 1 . 2 . 1 . 1 5 1 Weapon 7 | . . . . . 1 . . . 1 1 . 2 . . 2 . Highest Loss Streak 11 | . . . . . 1 . 1 1 2 6 . 3 . 2 11 1 To Critical Strikes . | . . . . . . . . . . . . . . . . . Average Slot Usage (%) 83 | . 94 100 100 100 82 98 89 93 85 73 71 71 63 64 55 30 Engine 2 | . 14 2 . . 3 7 6 1 . . . . . . . . Core 5 | . . 11 14 14 5 . . 6 5 5 10 9 10 5 . 2 Treads 3 | . 14 14 14 14 7 . . . . . . . . . . . Wheel 3 | . 14 14 14 14 3 . . . . . . . . . . . Flight 14 | . . . . . 16 23 19 22 21 15 14 14 10 14 9 2 Device 11 | . 2 . . . 9 21 16 19 23 20 15 10 5 5 3 . Storage 3 | . 14 14 14 14 3 . . . . . . . . . . . Processor 17 | . 7 14 14 14 20 23 19 17 17 15 15 15 15 15 19 19 Hackware 7 | . . . . . . 7 13 13 11 11 10 10 10 11 11 3 Energy Gun 4 | . 13 14 14 14 4 2 . 2 4 . . 5 . . . . Ballistic Gun 4 | . 14 14 14 14 3 4 6 2 . . . 1 5 3 2 . Piercing Weapon 1 | . . . . . . 7 6 3 . . . . . . . . Naked Turns . | . . . . . . . . . . . . . . . . . Heaviest Build 36 | 12 18 17 30 30 36 15 14 24 14 17 18 26 26 32 24 14 Greatest Support 32 | 10 10 10 10 10 20 15 17 25 23 23 25 26 26 32 32 7 Greatest Overweight (x) 4 | 1 1 1 2 2 3 . . 2 . 1 1 . . . 2 4 Average Overweight (x) . | . . 1 1 2 . . . . . . . . . . . . Largest Inventory Capacity 15 | 8 8 8 15 15 15 5 5 5 5 5 5 5 5 5 5 5 Average Capacity 6 | 6 8 8 13 15 9 5 5 5 5 5 5 5 5 5 5 5 Most Carried 9 | 3 8 8 8 8 9 5 5 5 5 5 5 5 4 5 3 4 Average Carried 4 | 1 7 8 8 8 5 4 4 4 5 4 4 3 4 3 1 2 Final Capacity 15 | 8 8 8 15 15 5 5 5 5 5 5 5 5 5 5 5 5 Final Carried 8 | 3 8 8 8 8 4 5 4 5 5 3 4 4 4 3 1 2 Class Distribution -------------------- 26% | Mutant 19% | Hacker-Scout 19% | Hacker-Ninja 11% | Ninja 9% | Hacker-Sprinter 7% | Scavenger-Scout Dominant Class ---------------- Mutant | -10/Materials Mutant | -10/Mines Mutant | -10/Exiles Mutant | -9/Mines Scavenger-Scout | -8/Materials Ninja | -7/Factory Hacker-Ninja | -6/Factory Hacker-Ninja | -5/Factory Hacker-Scout | -5/Waste Hacker-Scout | -5/Factory Hacker-Ninja | -4/Factory Hacker-Sprinter | -4/Upper Caves Hacker-Mutant | -4/Upper Caves Hacker-Scout | -3/Research Hacker-Sprinter | -3/Garrison Mutant | -3/Research Resources | -11 -10 -10 -10 -9 -8 -7 -6 -5 -5 -5 -4 -4 -4 -3 -3 -3 ----------- Run | Yrd Mat Min Exi Min Mat Fac Fac Fac Was Fac Fac Upp Upp Res Gar Res Matter Collected 1637 | 213 193 37 . . 366 110 20 169 . . . 416 . 34 79 . Remotely . | . . . . . . . . . . . . . . . . . Salvage Created 1478 | . 372 115 . . 462 170 53 84 . 128 . 73 . 21 . . Parts 82 | . 22 10 . . 23 14 4 4 . 2 . 2 . 1 . . Haulers Intercepted 3 | . 1 . . . 1 . . . . 1 . . . . . . Recyclers Shooed . | . . . . . . . . . . . . . . . . . Parts Field Recycled . | . . . . . . . . . . . . . . . . . Retrieved Matter . | . . . . . . . . . . . . . . . . . Parts Self-Destructed 11 | . . . . . . . . . . . . 11 . . . . Prevented . | . . . . . . . . . . . . . . . . . Kills | -11 -10 -10 -10 -9 -8 -7 -6 -5 -5 -5 -4 -4 -4 -3 -3 -3 ------- Run | Yrd Mat Min Exi Min Mat Fac Fac Fac Was Fac Fac Upp Upp Res Gar Res Combat Hostiles Destroyed 32 | . 6 4 . . 12 3 2 2 . 1 . 1 . 1 . . Melee 7 | . . . . . 1 3 2 1 . . . . . . . . Guns 19 | . 6 4 . . 8 . . . . . . 1 . . . . Cannons 5 | . . . . . 3 . . . . 1 . . . 1 . . AOE 1 | . . . . . . . . 1 . . . . . . . . Classes Destroyed 11 | . 5 1 . . 2 2 . . . . . . . 1 . . Worker 1 | . 1 . . . . . . . . . . . . . . . Hauler 3 | . 1 . . . 1 . . . . 1 . . . . . . Mechanic 1 | . 1 . . . . . . . . . . . . . . . Operator 1 | . . . . . . 1 . . . . . . . . . . Watcher 1 | . 1 . . . . . . . . . . . . . . . Swarmer 10 | . . 2 . . 6 . 2 . . . . . . . . . Cutter 1 | . . . . . . . . . . . . . . 1 . . Grunt 12 | . 6 2 . . 4 . . . . . . . . . . . Sentry 1 | . . . . . 1 . . . . . . . . . . . Hunter 4 | . . . . . 1 1 . 1 . . . 1 . . . . Programmer 4 | . . . . . . 2 . 1 . 1 . . . . . . Best Kill Streak 4 | . 4 2 . . 4 1 2 1 . 1 . 1 . 1 . . Combat Bots Only 4 | . 2 2 . . 4 1 2 1 . 1 . 1 . 1 . . Max Kills in Single Turn 2 | . 2 1 . . 1 1 1 1 . 1 . 1 . 1 . . Gunslinging . | . . . . . . . . . . . . . . . . . Exploded 1 | . . . . . . . . 1 . . . . . . . . Melee 1 | . . . . . 1 1 1 1 . . . . . . . . Uniques/NPCs Destroyed . | . . . . . . . . . . . . . . . . . Combat | -11 -10 -10 -10 -9 -8 -7 -6 -5 -5 -5 -4 -4 -4 -3 -3 -3 -------- Run | Yrd Mat Min Exi Min Mat Fac Fac Fac Was Fac Fac Upp Upp Res Gar Res Hostile Shots Fired 520 | . 31 17 . . 72 21 9 21 1 44 2 74 . 15 130 83 Missed 205 | . 9 4 . . 24 15 3 5 . 15 2 36 . 6 42 44 Damage Taken 5159 | . 317 139 . . 540 83 100 466 49 577 . 728 . 221 1296 643 Core 2003 | . 55 33 . . 99 14 32 68 31 126 . 234 . 121 746 444 Absorbed by Shields 203 | . . . . . . . . . . 27 . . . . 176 . Redirected to Shielding 84 | . . . . . 9 . . . . . . . . . 75 . Ignored by Resistances 117 | . . . . . . . . . . . . . . . 117 . Regen/Repaired (Parts) 15 | . . . . . . . . 15 . . . . . . . . Core Remaining (%) 85 | 100 . . . 64 82 98 96 . . 77 . . 79 . . . Volleys Fired 142 | . 35 9 10 . 29 4 . 3 . 26 . 13 . 13 . . Largest 2 | . 2 2 2 . 2 1 . 2 . 2 . 2 . 1 . . Hottest 146 | . 76 76 76 . 116 56 . 122 . 77 . 146 . 57 . . Shots Fired 227 | . 65 18 20 . 58 4 . 5 . 28 . 16 . 13 . . Gun 178 | . 65 18 20 . 52 4 . 3 . . . 16 . . . . Cannon 35 | . . . . . 6 . . 2 . 14 . . . 13 . . Launcher . | . . . . . . . . . . . . . . . . . Special 14 | . . . . . . . . . . 14 . . . . . . Kinetic 115 | . 32 9 10 . 26 . . 2 . 14 . 9 . 13 . . Thermal 105 | . 33 9 10 . 32 4 . . . 14 . 3 . . . . Explosive . | . . . . . . . . . . . . . . . . . Electromagnetic 7 | . . . . . . . . 3 . . . 4 . . . . Robot Hit Streak 11 | . 7 11 . . 7 . . 2 . 11 . 7 . 2 . . Robot Miss Streak 10 | . 4 1 . . 4 4 . 1 . 2 . 2 . 10 . . Penetration Max . | . . . . . . . . . . . . . . . . . Secondary Targets 2 | . 2 . . . . . . . . . . . . . . . Max Gunslinging Chain 1 | . 1 . . . . . . . . . . . . . . . Shots Hit Robots 153 | . 37 13 . . 44 9 3 7 . 21 3 13 . 3 . . Core Hits 63 | . 18 6 . . 21 5 2 3 . 5 . 2 . 1 . . Critical Kills . | . . . . . . . . . . . . . . . . . Critical Parts Destroyed 2 | . . . . . . . . . . . . . . 2 . . Critical Strikes 12 | . 4 1 . . 2 2 . . . 1 . . . 2 . . Burn 6 | . 4 1 . . 1 . . . . . . . . . . . Destroy 2 | . . . . . . . . . . . . . . 2 . . Sever 1 | . . . . . . . . . . 1 . . . . . . Impale 3 | . . . . . 1 2 . . . . . . . . . . Melee Attacks 64 | . . . . . 4 21 16 19 . . 3 1 . . . . Impact . | . . . . . . . . . . . . . . . . . Slashing . | . . . . . . . . . . . . . . . . . Piercing 60 | . . . . . 4 21 16 19 . . . . . . . . Sneak Attacks 4 | . . . . . . . 1 . . . 3 . . . . . Combat Hostiles . | . . . . . . . . . . . . . . . . . Follow-up Attacks . | . . . . . . . . . . . . . . . . . Damage Inflicted 3262 | . 611 193 . . 747 257 99 431 . 622 . 222 . 73 6 1 Guns 1536 | . 611 193 . . 505 . . 5 . . . 222 . . . . Cannons 705 | . . . . . 114 . . 39 . 479 . . . 73 . . Explosions 270 | . . . . . . . . 270 . . . . . . . . Melee 601 | . . . . . 128 257 99 117 . . . . . . . . Ramming 7 | . . . . . . . . . . . . . . . 6 1 Kinetic 1239 | . 248 93 . . 187 . . 39 . 479 . 120 . 73 . . Thermal 1202 | . 363 100 . . 432 . . 110 . 143 . 54 . . . . Explosive 160 | . . . . . . . . 160 . . . . . . . . Electromagnetic 53 | . . . . . . . . 5 . . . 48 . . . . Impact . | . . . . . . . . . . . . . . . . . Slashing . | . . . . . . . . . . . . . . . . . Piercing 601 | . . . . . 128 257 99 117 . . . . . . . . Highest Corruption 5 | . 1 1 1 1 . . . 1 1 5 2 3 3 . 1 1 Average Corruption 1 | . 1 1 1 1 . . . 1 1 2 2 2 3 . 1 1 Corruption Purged 1 | . . . . . . . . 1 . . . . . . . . Corruption Blocked . | . . . . . . . . . . . . . . . . . Effects 34 | . . 1 4 1 . . . . 1 10 4 11 1 . . 1 Message Errors 10 | . . 1 1 1 . . . . . 2 2 3 . . . . Matter Fused 4 | . . . . . . . . . . 2 . 2 . . . . Heat Flow Errors 4 | . . . 1 . . . . . . 2 . 1 . . . . Energy Discharges 5 | . . . 1 . . . . . 1 1 . 2 . . . . Parts Rejected 1 | . . . . . . . . . . . . 1 . . . . Parts Fused 1 | . . . . . . . . . . 1 . . . . . . Data Loss (minor) 7 | . . . . . . . . . . 2 1 2 1 . . 1 Data Loss (major) 2 | . . . 1 . . . . . . . 1 . . . . . Overload Shots . | . . . . . . . . . . . . . . . . . Overflow Damage 136 | . . . . . . 38 15 82 . 1 . . . . . . Projectiles 1 | . . . . . . . . . . 1 . . . . . . Explosions 82 | . . . . . . . . 82 . . . . . . . . Melee 53 | . . . . . . 38 15 . . . . . . . . . Knockbacks 9 | . . . . . . . . . . 7 . . . 2 . . Impact . | . . . . . . . . . . . . . . . . . Kinetic 8 | . . . . . . . . . . 6 . . . 2 . . Secondary 1 | . . . . . . . . . . 1 . . . . . . Self-Inflicted Damage 91 | . . . . . . . . 88 . . . . . . 3 . Shots 1 | . . . . . . . . 1 . . . . . . . . Rammed 2 | . . . . . . . . . . . . . . . 1 1 Targets Rammed 2 | . . . . . . . . . . . . . . . 1 1 Kicked . | . . . . . . . . . . . . . . . . . Crushed . | . . . . . . . . . . . . . . . . . Highest Temperature 333 | . 333 177 210 . 105 . . 132 . 248 . 269 . 23 . . Average Temperature 83 | . 105 80 105 . 41 . . 53 . 71 . 127 . 13 . . Received Heat Transfer 634 | . 198 60 . . 171 . . . . 36 . 12 . . 157 . Effects 4 | . 4 . . . . . . . . . . . . . . . Interference 4 | . 4 . . . . . . . . . . . . . . . Siege Activations . | . . . . . . . . . . . . . . . . . Robots Corrupted . | . . . . . . . . . . . . . . . . . Combat Hostiles . | . . . . . . . . . . . . . . . . . Parts Fried . | . . . . . . . . . . . . . . . . . Impact Corruptions . | . . . . . . . . . . . . . . . . . Robots Melted . | . . . . . . . . . . . . . . . . . Combat Hostiles . | . . . . . . . . . . . . . . . . . Parts Melted 3 | . . . . . 2 . . . . 1 . . . . . . Heat Transferred 2788 | . 1073 296 . . 962 . . 50 . 333 . 74 . . . . Parts Sabotaged . | . . . . . . . . . . . . . . . . . Parts Stolen . | . . . . . . . . . . . . . . . . . Parts Stripped . | . . . . . . . . . . . . . . . . . Power Chain Reactions 1 | . . . . . . . . 1 . . . . . . . . Alert | -11 -10 -10 -10 -9 -8 -7 -6 -5 -5 -5 -4 -4 -4 -3 -3 -3 ------- Run | Yrd Mat Min Exi Min Mat Fac Fac Fac Was Fac Fac Upp Upp Res Gar Res Peak Influence 277 | . 218 184 . . 241 277 90 194 38 161 90 . . 136 132 97 Initial 117 | . . 84 . . . 109 37 44 38 12 78 . . 10 117 29 Average 81 | . 107 146 . . 109 134 41 62 33 47 83 . . 44 96 55 Maximum Alert Level 1 | . 1 . . . 1 1 . . . . . . . . . . Low Security (%) 93 | 100 72 100 . 100 85 81 100 100 100 100 100 . . 100 100 100 Level 1 6 | . 27 . . . 14 18 . . . . . . . . . . Level 2 . | . . . . . . . . . . . . . . . . . Level 3 . | . . . . . . . . . . . . . . . . . Level 4 . | . . . . . . . . . . . . . . . . . Level 5 . | . . . . . . . . . . . . . . . . . High Security . | . . . . . . . . . . . . . . . . . Max Security . | . . . . . . . . . . . . . . . . . Squads Dispatched 25 | . . . . . 2 5 2 5 . 4 2 . . 4 . 1 Investigation 6 | . . . . . 1 . 1 1 . 1 1 . . . . 1 Extermination 8 | . . . . . . 2 1 1 . 2 1 . . 1 . . Reinforcement 11 | . . . . . 1 3 . 3 . 1 . . . 3 . . Assault . | . . . . . . . . . . . . . . . . . Garrison . | . . . . . . . . . . . . . . . . . Intercept . | . . . . . . . . . . . . . . . . . Searches Triggered . | . . . . . . . . . . . . . . . . . Construction Impeded 1 | . . . . . . . . 1 . . . . . . . . Haulers Reinforced . | . . . . . . . . . . . . . . . . . Active Scanning Responses . | . . . . . . . . . . . . . . . . . Cargo Convoy Interrupts . | . . . . . . . . . . . . . . . . . Stealth | -11 -10 -10 -10 -9 -8 -7 -6 -5 -5 -5 -4 -4 -4 -3 -3 -3 --------- Run | Yrd Mat Min Exi Min Mat Fac Fac Fac Was Fac Fac Upp Upp Res Gar Res Distress Signals 3 | . 1 . . . 1 . . . . . . . . . . 1 Communications Jammed 15 | . . . . . . . . 5 . . . . . 10 . . Distress Signals 15 | . . . . . . . . 5 . . . . . 10 . . Times Spotted 126 | . 10 5 . . 23 13 4 8 6 10 1 17 . 12 11 6 Peak Tracking Total 10 | . 5 2 . . 7 4 3 5 6 5 1 8 . 4 10 6 Tactical Retreats 19 | . 1 . . . 3 2 1 1 . 6 . 4 . . 1 . Traps | -11 -10 -10 -10 -9 -8 -7 -6 -5 -5 -5 -4 -4 -4 -3 -3 -3 ------- Run | Yrd Mat Min Exi Min Mat Fac Fac Fac Was Fac Fac Upp Upp Res Gar Res Traps Triggered 11 | . 1 . . . . . . 2 . 1 1 . . 1 5 . Indirectly . | . . . . . . . . . . . . . . . . . Trap Hack Attempts . | . . . . . . . . . . . . . . . . . Triggered . | . . . . . . . . . . . . . . . . . Disarmed 6 | . . . . . . . 6 . . . . . . . . . Reprogrammed 8 | . . . . . . . 4 . . 4 . . . . . . Reused . | . . . . . . . . . . . . . . . . . Traps Extracted . | . . . . . . . . . . . . . . . . . Installed . | . . . . . . . . . . . . . . . . . Triggered . | . . . . . . . . . . . . . . . . . Machines | -11 -10 -10 -10 -9 -8 -7 -6 -5 -5 -5 -4 -4 -4 -3 -3 -3 ---------- Run | Yrd Mat Min Exi Min Mat Fac Fac Fac Was Fac Fac Upp Upp Res Gar Res Machines Disabled 4 | . . . . . . . . 3 . . . . . 1 . . Max in Single Turn 3 | . . . . . . . . 3 . . . . . 1 . . Garrison Relay 1 | . . . . . . . . . . . . . . . 1 . Machines Repaired . | . . . . . . . . . . . . . . . . . Machines Dismantled . | . . . . . . . . . . . . . . . . . Machines Sabotaged . | . . . . . . . . . . . . . . . . . Overloaded Fab Kills . | . . . . . . . . . . . . . . . . . Hacking | -11 -10 -10 -10 -9 -8 -7 -6 -5 -5 -5 -4 -4 -4 -3 -3 -3 --------- Run | Yrd Mat Min Exi Min Mat Fac Fac Fac Was Fac Fac Upp Upp Res Gar Res Machines Accessed 65 | . 1 . 4 . 4 13 10 11 . 9 3 . . 9 . 1 Terminals 41 | . 1 . . . 4 8 6 6 . 7 1 . . 7 . 1 Fabricators 6 | . . . . . . . 1 2 . 2 1 . . . . . Repair Stations 3 | . . . . . . 1 . 2 . . . . . . . . Recycling Units 7 | . . . . . . 3 2 . . . 1 . . 1 . . Scanalyzers 3 | . . . . . . 1 1 1 . . . . . . . . Garrison Access 1 | . . . . . . . . . . . . . . 1 . . Total Hacks 204 | . 2 . 49 . 12 22 30 25 . 29 11 . . 21 . 3 Successful 134 | . 1 . 49 . 4 11 17 17 . 18 7 . . 9 . 1 Failed 70 | . 1 . . . 8 11 13 8 . 11 4 . . 12 . 2 Catastrophic 9 | . . . . . . 1 1 1 . 2 1 . . 2 . 1 Database Lockouts . | . . . . . . . . . . . . . . . . . Manual 8 | . . . . . . . . . . 5 . . . 3 . . Terminals 108 | . 2 . . . 12 14 20 12 . 24 4 . . 17 . 3 Fabricators 16 | . . . . . . . 5 5 . 5 1 . . . . . Repair Stations 7 | . . . . . . 1 . 6 . . . . . . . . Recycling Units 15 | . . . . . . 4 4 . . . 6 . . 1 . . Scanalyzers 6 | . . . . . . 3 1 2 . . . . . . . . Garrison Access 3 | . . . . . . . . . . . . . . 3 . . Terminal Hacks 104 | . 1 . 49 . 4 7 11 7 . 16 1 . . 7 . 1 Record 66 | . . . 49 . . 1 1 1 . 6 1 . . 6 . 1 Robot Schematic 2 | . . . . . . . . . . 2 . . . . . . Robot Analysis 1 | . . . . . . 1 . . . . . . . . . . Prototype ID Bank 1 | . . . . . 1 . . . . . . . . . . . Level Access Points 2 | . 1 . . . . 1 . . . . . . . . . . Branch Access Points 1 | . . . . . . . 1 . . . . . . . . . Emergency Access Points 3 | . . . . . . . . 2 . 1 . . . . . . Terminal Index 2 | . . . . . . . . 1 . 1 . . . . . . Alert Level 1 | . . . . . . . . . . 1 . . . . . . Unreport Threat 3 | . . . . . . . 1 1 . 1 . . . . . . Locate Traps 2 | . . . . . . . . 1 . 1 . . . . . . Disarm Traps 1 | . . . . . . . 1 . . . . . . . . . Reprogram Traps 2 | . . . . . . . 1 . . 1 . . . . . . Dispatch Records 1 | . . . . . . . 1 . . . . . . . . . Maintenance Status 3 | . . . . . 1 1 1 . . . . . . . . . Security Status 1 | . . . . . . . . . . 1 . . . . . . Surveillance Status 1 | . . . . . . . . . . . . . . 1 . . Patrol Status 3 | . . . . . 1 2 . . . . . . . . . . Reinforcement Status 2 | . . . . . . . 2 . . . . . . . . . Recall Reinforcements 2 | . . . . . 1 . . 1 . . . . . . . . Hauler Manifests 3 | . . . . . . 1 1 . . 1 . . . . . . Zone Layout 1 | . . . . . . . 1 . . . . . . . . . Fabricator Hacks 10 | . . . . . . . 3 4 . 2 1 . . . . . Network Status 1 | . . . . . . . . 1 . . . . . . . . Load Schematic 3 | . . . . . . . 1 1 . 1 . . . . . . Build 6 | . . . . . . . 2 2 . 1 1 . . . . . Repair Station Hacks 4 | . . . . . . . . 4 . . . . . . . . Scan Component 2 | . . . . . . . . 2 . . . . . . . . Repair 2 | . . . . . . . . 2 . . . . . . . . Recycling Unit Hacks 10 | . . . . . . 2 2 . . . 5 . . 1 . . Recycle Component 1 | . . . . . . . . . . . 1 . . . . . Process 1 | . . . . . . . 1 . . . . . . . . . Retrieve Matter 6 | . . . . . . . 1 . . . 4 . . 1 . . Retrieve Components 2 | . . . . . . 2 . . . . . . . . . . Scanalyzer 5 | . . . . . . 2 1 2 . . . . . . . . Insert Component 3 | . . . . . . 1 1 1 . . . . . . . . Analyze 2 | . . . . . . 1 . 1 . . . . . . . . Garrison Access Hacks 1 | . . . . . . . . . . . . . . 1 . . Unlock Access 1 | . . . . . . . . . . . . . . 1 . . Unauthorized Hacks . | . . . . . . . . . . . . . . . . . Terminals . | . . . . . . . . . . . . . . . . . Fabricators . | . . . . . . . . . . . . . . . . . Repair Stations . | . . . . . . . . . . . . . . . . . Recycling Units . | . . . . . . . . . . . . . . . . . Scanalyzers . | . . . . . . . . . . . . . . . . . Garrison Access . | . . . . . . . . . . . . . . . . . Data Cores Recovered 2 | . . . . . 1 1 . . . . . . . . . . Used . | . . . . . . . . . . . . . . . . . Hacking Detections 53 | . 1 . . . 4 10 8 10 . 8 2 . . 9 . 1 Full Trace Events 6 | . . . . . 1 . 1 1 . 1 1 . . . . 1 Feedback Events . | . . . . . . . . . . . . . . . . . Feedback Blocked . | . . . . . . . . . . . . . . . . . Robot Schematics Acquired 2 | . . . . . . . . . . 2 . . . . . . Robots Built . | . . . . . . . . . . . . . . . . . Authchips . | . . . . . . . . . . . . . . . . . Time 134 | . . . . . . . 134 . . . . . . . . . Total Robot Build Rating . | . . . . . . . . . . . . . . . . . Part Schematics Acquired 2 | . . . . . . 1 . 1 . . . . . . . . Parts Built 10 | . . . . . . . 2 4 . 2 2 . . . . . Authchips . | . . . . . . . . . . . . . . . . . Time 378 | . . . . . . . 51 104 . 84 139 . . . . . Total Part Build Rating 42 | . . . . . . . 2 14 . 8 18 . . . . . Parts Repaired 1 | . . . . . . . . 1 . . . . . . . . Time 56 | . . . . . . . . 56 . . . . . . . . Parts Recycled 1 | . . . . . . . . . . . 1 . . . . . Recycled Matter 150 | . . . . . . . 150 . . . . . . . . . Retrieved Matter 150 | . . . . . . . 150 . . . . . . . . . Retrieved Components 2 | . . . . . . 2 . . . . . . . . . . Parts Scanalyzed 2 | . . . . . . 1 . 1 . . . . . . . . Part Schematics Acquired 2 | . . . . . . 1 . 1 . . . . . . . . Parts Damaged 1 | . . . . . . . . 1 . . . . . . . . Bothacking | -11 -10 -10 -10 -9 -8 -7 -6 -5 -5 -5 -4 -4 -4 -3 -3 -3 ------------ Run | Yrd Mat Min Exi Min Mat Fac Fac Fac Was Fac Fac Upp Upp Res Gar Res Used RIF Installer 1 | . . . . . . . . . . . . . . . 1 . Robots Hacked 1 | . . . . . . . . . . . 1 . . . . . Non-combat 1 | . . . . . . . . . . . 1 . . . . . Combat . | . . . . . . . . . . . . . . . . . Robot Hacks Applied 3 | . . . . . . . . . . . 3 . . . . . parse_system 1 | . . . . . . . . . . . 1 . . . . . no_distress 1 | . . . . . . . . . . . 1 . . . . . find_station 1 | . . . . . . . . . . . 1 . . . . . Relay Couplers Released 3 | . . . . . . . . . . . . . . . 3 . Machine Destruction 3 | . . . . . . . . . . . . . . . 3 . Fabnet Peak Effective % . | . . . . . . . . . . . . . . . . . Robots Rewired . | . . . . . . . . . . . . . . . . . Allies Hacked . | . . . . . . . . . . . . . . . . . Hacks Repelled 1 | . . . . . . . . . . . . 1 . . . . Allies | -11 -10 -10 -10 -9 -8 -7 -6 -5 -5 -5 -4 -4 -4 -3 -3 -3 -------- Run | Yrd Mat Min Exi Min Mat Fac Fac Fac Was Fac Fac Upp Upp Res Gar Res Total Allies 4 | . . . . 4 . . . . . . . . . . . . Largest Group 4 | . . . . 4 4 . . . . . . . . . . . Highest-Rated Group 71 | . . . . 71 71 . . . . . . . . . . . Highest-Rated Ally 31 | . . . . 31 31 . . . . . . . . . . . Total Orders . | . . . . . . . . . . . . . . . . . Ally Attacks 32 | . . . . . 32 . . . . . . . . . . . Total Damage 387 | . . . . . 387 . . . . . . . . . . . Kills 3 | . . . . . 3 . . . . . . . . . . . Allies Corrupted . | . . . . . . . . . . . . . . . . . Allies Melted . | . . . . . . . . . . . . . . . . . Intel | -11 -10 -10 -10 -9 -8 -7 -6 -5 -5 -5 -4 -4 -4 -3 -3 -3 ------- Run | Yrd Mat Min Exi Min Mat Fac Fac Fac Was Fac Fac Upp Upp Res Gar Res Robot Analysis Total 1 | . . . . . . 1 . . . . . . . . . . Derelict Logs Recovered 2 | . . 1 . . . . . . . . . 1 . . . . Drone Launches . | . . . . . . . . . . . . . . . . . Drone Recoveries . | . . . . . . . . . . . . . . . . . Exploration | -11 -10 -10 -10 -9 -8 -7 -6 -5 -5 -5 -4 -4 -4 -3 -3 -3 ------------- Run | Yrd Mat Min Exi Min Mat Fac Fac Fac Was Fac Fac Upp Upp Res Gar Res Turns Passed 7850 | 41 357 220 747 70 1139 958 756 865 74 628 339 515 91 690 131 229 Spaces Moved 10629 | 34 229 198 673 64 651 1443 824 1277 169 1226 833 1255 245 957 205 346 Core 194 | 3 . . . . . . . 30 . . . . . . 38 123 Treads 92 | . . . . . 92 . . . . . . . . . . . Legs . | . . . . . . . . . . . . . . . . . Wheels 1304 | 31 229 198 673 64 109 . . . . . . . . . . . Hover . | . . . . . . . . . . . . . . . . . Flight 9039 | . . . . . 450 1443 824 1247 169 1226 833 1255 245 957 167 223 Fastest Speed 28 | 50 80 95 95 110 34 34 32 31 33 28 30 30 37 32 32 40 Average Speed 44 | 86 94 95 106 110 79 34 33 35 34 32 30 31 37 32 37 44 Slowest Speed 250 | 95 95 95 110 110 240 34 34 150 39 39 102 37 37 37 150 250 Overloaded Moves . | . . . . . . . . . . . . . . . . . Propulsion Burnouts . | . . . . . . . . . . . . . . . . . Robots Hopped 37 | . . . . . 3 . . 4 . 16 1 . 2 8 . 3 Cave-ins Triggered . | . . . . . . . . . . . . . . . . . Exploration Rate (%) 40 | 3 53 58 92 20 46 42 28 30 83 33 18 88 25 22 39 16 Regions Visited 16 Branch Regions 5 Pre-discovered Areas 2 | . . 1 1 . . . . . . . . . . . . . Known Exits Taken 12 | . 1 1 1 1 1 1 1 . . 1 1 1 1 1 . . Unknown Exits Taken 1 | 1 . . . . . . . . . . . . . . . . Scrap Searched 4 | . . 2 . . . . . . . . . 2 . . . . Spaces Dug 26 | . . . . . . 9 8 9 . . . . . . . . Terrain Destroyed 50 | . . . . . . 9 8 27 . 3 . . . 3 . . Melee 26 | . . . . . . 9 8 9 . . . . . . . . Projectile 5 | . . . . . . . . . . 3 . . . 2 . . AOE 18 | . . . . . . . . 18 . . . . . . . . Terrain Rammed . | . . . . . . . . . . . . . . . . . Walls Destroyed . | . . . . . . . . . . . . . . . . . Machines Disabled . | . . . . . . . . . . . . . . . . . Actions | -11 -10 -10 -10 -9 -8 -7 -6 -5 -5 -5 -4 -4 -4 -3 -3 -3 --------- Run | Yrd Mat Min Exi Min Mat Fac Fac Fac Was Fac Fac Upp Upp Res Gar Res Total 13422 | 42 306 212 686 63 1213 1876 1277 1651 186 1394 919 1362 242 1318 258 417 Wait 2330 | . 22 4 . . 469 389 421 325 14 114 72 75 . 337 25 63 Move 10542 | 33 228 197 672 63 644 1442 823 1269 168 1194 830 1254 240 940 204 341 Hop 35 | . . . . . 3 . . 4 . 15 1 . 2 8 . 2 Pick Up 38 | 3 7 . . . 11 1 . 3 1 2 5 2 . 1 . 2 Fast Attach 70 | 6 4 . . . 10 8 4 11 1 5 3 6 . 8 . 4 Attach 38 | . . . . . 10 2 3 . . 10 1 3 . 5 2 2 Detach 40 | . 3 . . . 10 2 4 3 . 8 . 4 . 4 . 2 Swap 20 | . 1 1 1 . 6 1 2 6 . 1 . 1 . . . . Drop 57 | . 6 1 1 . 17 6 4 8 2 3 4 3 . 2 . . Fire 142 | . 35 9 10 . 29 4 . 3 . 26 . 13 . 13 . . Melee 64 | . . . . . 4 21 16 19 . . 3 1 . . . . Ram 2 | . . . . . . . . . . . . . . . 1 1 Kick . | . . . . . . . . . . . . . . . . . Crush . | . . . . . . . . . . . . . . . . . Escape Stasis 39 | . . . . . . . . . . 13 . . . . 26 . Rewire 2 | . . . 2 . . . . . . . . . . . . . Trap . | . . . . . . . . . . . . . . . . . Miscellaneous 3 | . . . . . . . . . . 3 . . . . . . Route ------- -11/Scrapyard -10/Materials (discovered 4 exits: *Mat x3 / *Min) -10/Mines (discovered 2 exits: *Mat / *Exi) -10/Exiles (discovered 2 exits: *Min x2) -9/Mines (discovered 2 exits: *Mat x2) -8/Materials -7/Factory (discovered 4 exits: *Fac x4) -6/Factory (discovered 5 exits: *Fac / Low x2 / Ext x2) -5/Factory (discovered 2 exits: *Fac / [*Upp]) -5/Waste -5/Factory -4/Factory -4/Upper Caves -4/Upper Caves -3/Research -3/Garrison -3/Research History --------- Turn | Location | Event 2 | -11/Scrapyard | Met Revision 17 11 | -11/Scrapyard | Discovered new exit (range 15) 42 | -11/Scrapyard | Entered Materials 256 | -10/Materials | Identified exit to Materials 331 | -10/Materials | Build established: Mutant 395 | -10/Materials | Discovered new exit (range 4) 398 | -10/Materials | Identified exit to Mines 399 | -10/Materials | Entered Mines 409 | -10/Mines | Learned location of Zion (-7) 472 | -10/Mines | Received a Rocket Launcher from a helpful Derelict 535 | -10/Mines | Discovered exit to Materials (range 6) 614 | -10/Mines | Deemed a non-threat by the Exiles lab entrance 615 | -10/Mines | Discovered new exit (range 5) 618 | -10/Mines | Identified exit to Exiles 619 | -10/Mines | Entered Exiles 636 | -10/Exiles | Discovered new exit (range 15) 648 | -10/Exiles | Identified exit to Mines 698 | -10/Exiles | Met 8R-AWN 715 | -10/Exiles | Met EX-HEX 753 | -10/Exiles | Met EX-DEC 837 | -10/Exiles | Discovered exit to Mines (range 14) 912 | -10/Exiles | Visited The Gauntlet 1081 | -10/Exiles | Met EX-BIN 1191 | -10/Exiles | Aligned with FarCom system 1192 | -10/Exiles | Given EX-Vault access code 1366 | -10/Exiles | Entered Mines 1385 | -9/Mines | Discovered new exit (range 8) 1392 | -9/Mines | Identified exit to Materials 1395 | -9/Mines | Assisted by bots powering up and referring to "LRC-V3" 1415 | -9/Mines | Discovered exit to Materials (range 12) 1422 | -9/Mines | Received a Mining Laser from a helpful Derelict 1436 | -9/Mines | Entered Materials 1436 | -8/Materials | Accompanied by 4 allies 1436 | -8/Materials | Evolved 4 slots: Propulsion x1, Utility x3 1798 | -8/Materials | Lost 3 allies 2210 | -8/Materials | Build established: Scavenger-Scout 2433 | -8/Materials | Discovered new exit (range 20) 2441 | -8/Materials | Identified exit to Factory 2575 | -8/Materials | Entered Factory 2575 | -7/Factory | Evolved 2 slots: Utility x2 2789 | -7/Factory | Identified exit to Factory 2837 | -7/Factory | Build established: Ninja 3533 | -7/Factory | Entered another Factory area 3533 | -6/Factory | Evolved 2 slots: Utility x2 3595 | -6/Factory | Identified exit to Lower Caves 3595 | -6/Factory | Identified exit to Extension 3720 | -6/Factory | Build established: Hacker-Ninja 3961 | -6/Factory | Fabricated Flight Unit? 4278 | -6/Factory | Discovered new exit (range 5) 4279 | -6/Factory | Identified exit to Factory 4289 | -6/Factory | Entered another Factory area 4289 | -5/Factory | Evolved 2 slots: Power x1, Propulsion x1 4479 | -5/Factory | Discovered new exit (range 10) 4502 | -5/Factory | Identified exit to Factory 4507 | -5/Factory | Fabricated Flight Unit? 4605 | -5/Factory | Fabricated Mass Driver (x2) 4845 | -5/Factory | Repaired Broken Trap Scanner 4871 | -5/Factory | Discovered new exit (range 19) 5154 | -5/Factory | Sucked down chute 5154 | -5/Factory | Entered Waste 5165 | -5/Waste | Spotted C-40 Crusher 5186 | -5/Waste | Spotted C-40 Crusher 5186 | -5/Waste | Spotted C-40 Crusher 5188 | -5/Waste | Spotted C-40 Crusher 5191 | -5/Waste | Spotted C-40 Crusher 5193 | -5/Waste | Spotted C-40 Crusher 5212 | -5/Waste | Crushed by Compactor (1 part destroyed, 1 dropped) 5221 | -5/Waste | Discovered new exit (range 20) 5228 | -5/Waste | Identified exit to Factory 5228 | -5/Waste | Entered Factory 5264 | -5/Factory | Build established: Hacker-Scout 5676 | -5/Factory | Lost 6 parts (3n2u1w) 5776 | -5/Factory | Fabricated Xenon Bombardment Thruster? 5852 | -5/Factory | Discovered exit to Factory (range 8) 5856 | -5/Factory | Entered another Factory area 5856 | -4/Factory | Evolved 2 slots: Utility x2 6037 | -4/Factory | Fabricated Lgt. Quantum Reactor? 6081 | -4/Factory | Discovered new exit (range 15) 6085 | -4/Factory | Identified exit to Upper Caves 6195 | -4/Factory | Entered Upper Caves 6198 | -4/Upper Caves | Spotted B-86 Titan 6205 | -4/Upper Caves | Learned Research terminal intel 6211 | -4/Upper Caves | Encountered a Warlord checkpoint 6301 | -4/Upper Caves | Attracted the attention of an 0b10 checkpoint 6489 | -4/Upper Caves | Build established: Hacker-Sprinter 6619 | -4/Upper Caves | Lost 3 allies 6635 | -4/Upper Caves | Lost 3 parts (1p2w) 6708 | -4/Upper Caves | Discovered new exit (range 5) 6709 | -4/Upper Caves | Identified exit to Upper Caves 6710 | -4/Upper Caves | Entered another Upper Caves area 6716 | -4/Upper Caves | Discovered new exit (range 12) 6723 | -4/Upper Caves | Identified exit to Research 6801 | -4/Upper Caves | Entered Research 6801 | -3/Research | Evolved 2 slots: Propulsion x1, Utility x1 6802 | -3/Research | Loaded intel: 24 terminal locations 7105 | -3/Research | Build established: Hacker-Scout 7443 | -3/Research | Found Prototype Device 7443 | -3/Research | Identified Adv. EM Disruption Field 7491 | -3/Research | Identified exit to Garrison 7491 | -3/Research | Entered Garrison 7517 | -3/Garrison | Installed Relay Interface Framework 7547 | -3/Garrison | Spotted B-86 Titan 7556 | -3/Garrison | Spotted B-90 Cyclops 7556 | -3/Garrison | Spotted B-86 Titan 7604 | -3/Garrison | Garrison Relay disabled 7610 | -3/Garrison | Core integrity fell below 50% 7617 | -3/Garrison | Discovered new exit (range 10) 7621 | -3/Garrison | Identified exit to Research 7622 | -3/Garrison | Entered Research 7637 | -3/Research | Lost 11 parts (1p3n5u2w) 7751 | -3/Research | Found Prototype Processor 7751 | -3/Research | Identified Exp. Signal Interpreter 7829 | -3/Research | Core integrity fell below 20% 7851 | -3/Research | Destroyed by P-80 Master with Gamma Rifle Last Messages --------------- 07755_ Discarded Faulty Exp. Signal Interpreter. 07763_ Connecting with Terminal... 07799_ Slug penetrates A-15 Conveyor. 07799_ Slug penetrates Wall. 07807_ Impulse Thruster destroyed. 07828_ Slug penetrates Wall. 07829_ Acquired Imp. Phase Shifter. 07831_ W-44 Eye sends out distress signal. 07831_ Slug penetrates Door. 07831_ Slug penetrates Wall. 07834_ Penetrated by Slug. 07834_ Slug penetrates H-77 Assassin. 07834_ Penetrated by Slug. 07841_ Slug penetrates Wall. 07841_ Penetrated by Slug. 07841_ System Shield destroyed. 07842_ System corrupted: Component data lost. 07846_ Identified Enh. Coil Gun. 07847_ Slammed into K-01 Serf. [Achievement: This Is Interesting...] Map ----- +----------------------------------------------------+ | ?????????????????????????????????????????????????? | | ?????????????????????????????????????????????????? | | ?????????????????????????????????????????????????? | | ?????????????????????????????????????????????????? | | ?????????????????????????????????????????????????? | | ?????????????????????????????????????????????????? | | ?????????????????????????????????????????????????? | | ?????????????????????????????????????????????????? | | ?????????????????????????????????????????????????? | | ?????????????????????????????????????????????????? | | ?????????????????????????????????????????????????? | | ????????????????????????????????????H????????????? | | ?????????????????????????????????????????????????? | | ?????????????????????????????????????????????????? | | ?????????????????????????????????????????????????? | | ??????????????????????????????????? ???????????? | | ??????????????????????????????????? ???????????? | | ??????????????????????????????????? #??????????? | | ??????????????????????????????????# #??????????? | | ??????????????????????????????????# #??????????? | | ??????????????????????????????????# #??????????? | | ??????????????????????????????????# #??????????? | | ????????#########?????????????????# #??????????? | | ????????# * #?????????????????# #??????????? | | ????????# ############# ##### #??????????? | | ????????# + p @ kk #??????????? | | ????????# # h############## #??????????? | | ????????# # h #????????????# #??????????? | | ????????######### #????????????# #??????????? | | ????????????????# #??########### #??????????? | | ?????????# # #### # ############ | | ?????????# " / # | | ?????????# # w # !! # | | ?????????# # # !!! " | | ?????????# ?# / w!! # | | ?????????######?# #### # h###+######+# | | ????????????????# #??# # #??????????? | | ??????????????? #??# # h#??????????? | | ????????????? #??########### #??????????? | | ??????????? #????????????# #??????????? | | ?????????? #????????????# #??????????? | | ?????????? #????????????# #??????????? | | ??????????? #????????????# #??????????? | | ??????????? = +????????????# #??????????? | | ?????????????########?????????????# #??????????? | | ??????????????????????????????????# ############ | | ??????????????????????????????????# | | ??????????????????????????????????# | | ??????????????????????????????????# | | ??????????????????????????????????##+######+### | +----------------------------------------------------+ Best States ------------- Heat Dissipation 46 Energy Generation 32 Energy Capacity 400 Matter Stores 300 Matter Capacity 300 Sight Range 20 Robot Scan Range 14 Terrain Scan Range 16 Terrain Scan Density 110 Jamming Range 14 Base Temperature (-) 100 Resistance: EM 50 Utility Shielding 66 Weapon Shielding 66 Melee Speed Boost 20 Phase Shifting 10 Evasion (%) 68 Melee Accuracy 5 Launcher Accuracy 30 Recoil Reduction 2 Offensive Hacking 24 Defensive Hacking 22 Item Schematics ----------------- Flight Unit | -7/Factory | Scanalyzed Xenon Bombardment Thruster | -5/Factory | Scanalyzed Robot Schematics ------------------ A-15 Conveyor | -5/Factory | Hacked X-72 Disruptor | -5/Factory | Hacked Fabricated ------------ Flight Unit | x2 | -6/Factory Flight Unit | x2 | -5/Factory Mass Driver | x2 | -5/Factory | Preloaded Xenon Bombardment Thruster | x2 | -5/Factory Lgt. Quantum Reactor | x2 | -4/Factory | Preloaded Alien Tech Used ----------------- None Achievements -------------- Dangerous Findings Just What I Needed Omniscient Cartographer Production Line This Is Interesting... Challenges ------------ None Game ------ Seed CooledUtilitySegregator Manual? 0 Play Time 03:18:22 Cumulative 35.6 hours Start 2024.06.05 @ 19:23:58 End 2024.06.06 @ 00:26:35 Sessions 3 Manual Loads 0 Difficulty Rogue Special Mode None Game No. 21 Rogue 14 Adventurer 7 Explorer 0 Win Type - Total 0 Types 0/0/0/0/0/0/0/0/0 Lore% 26 Gallery% 34 Achievement% 27 Wizard Run 0 Options --------- Layout 0 ASCII 0 Keyboard 1 Movement Vi Keybinds 0 Fullscreen 2 Font 24/Smallcaps Map View 76x50 Zoom Use 0% Tactical HUD 1 Map Filters NONE Filters NONE Steam 1 RUN: 554be4b1-3273-4150-b4ad-e75a03a98cce